bitfinex-derivatives/quotes_BTCF0:USTF0_20241224
["timestamp","ask_amount","ask_price","bid_price","bid_amount"]
[1735051549884,0.02103349,97072.0,97064.0,0.051566]
[1735051550076,0.02031349,97072.0,97065.0,0.3608]
[1735051550277,0.051565,97066.0,97065.0,0.3608]
[1735051550677,0.001,97071.0,97069.0,0.051563]
[1735051551079,0.001,97071.0,97070.0,0.1601]
[1735051551375,0.051562,97072.0,97070.0,0.1601]
[1735051552083,0.3608,97077.0,97057.0,0.3608]
[1735051552388,0.051569,97058.0,97052.0,0.1601]
[1735051552688,0.3608,97066.0,97045.0,0.3608]
[1735051552689,0.051572,97053.0,97045.0,0.3608]
[1735051552889,0.051575,97048.0,97045.0,0.3608]
[1735051553183,0.051573,97051.0,97045.0,0.3608]
[1735051553386,0.15280832,97055.0,97045.0,0.3608]
[1735051553980,0.051575,97047.0,97040.0,0.1649]
[1735051554283,0.051576,97046.0,97045.0,0.3698]
[1735051554788,0.3608,97050.0,97045.0,0.009]
[1735051554981,0.051576,97046.0,97045.0,0.009]
[1735051555794,0.051576,97046.0,97045.0,0.015]
[1735051555985,0.01996206,97050.0,97045.0,0.015]
[1735051556185,0.051574,97050.0,97045.0,0.015]
[1735051556389,0.051574,97050.0,97049.0,0.3608]
[1735051556390,0.051573,97050.0,97049.0,0.3608]
[1735051556589,0.051573,97050.0,97045.0,0.015]
[1735051556886,0.0196006,97051.0,97045.0,0.006]
[1735051557077,0.001,97046.0,97045.0,0.006]
[1735051557482,0.3608,97079.0,97049.0,0.004]
[1735051557682,0.15280832,97070.0,97059.0,0.3608]
[1735051557890,0.051568,97061.0,97059.0,0.3608]
[1735051558292,0.051573,97052.0,97049.0,0.004]
[1735051558480,0.051573,97051.0,97049.0,0.004]
[1735051559290,0.051575,97047.0,97046.0,0.3605]
[1735051559995,0.412375,97047.0,97046.0,0.3605]
[1735051560495,0.051575,97047.0,97046.0,0.7233]
[1735051560686,0.051575,97047.0,97046.0,0.3625]
[1735051560989,0.051575,97047.0,97046.0,0.3615]
[1735051561188,0.07133449,97047.0,97046.0,0.3615]
[1735051561397,0.07133449,97047.0,97046.0,0.3625]
[1735051561692,0.07133449,97047.0,97046.0,0.002]
[1735051561891,0.01975949,97047.0,97046.0,0.002]
[1735051562191,0.051575,97048.0,97046.0,0.002]
[1735051562390,0.001,97047.0,97046.0,0.001]
[1735051563391,0.001,97047.0,97023.0,0.6931]
[1735051563586,0.051584,97031.0,97023.0,0.69362]
[1735051563985,0.15280832,97040.0,97023.0,0.69362]
[1735051564282,0.051583,97032.0,97023.0,0.69362]
[1735051564686,0.15280832,97040.0,97023.0,0.69362]
[1735051564899,0.15280832,97040.0,97023.0,0.33312]
[1735051565095,0.051583,97033.0,97025.0,0.3668]
[1735051565390,0.15280832,97040.0,97026.0,0.1658]
[1735051566086,0.051585,97029.0,97026.0,0.1658]
[1735051566289,0.051586,97027.0,97026.0,0.1658]
[1735051566600,0.051586,97027.0,96984.0,0.2372883]
[1735051566601,0.051603,96995.0,96984.0,0.2372883]
[1735051566902,0.051618,96966.0,96965.0,0.42012302]
[1735051567091,0.412418,96966.0,96965.0,0.41960302]
[1735051567903,0.3608,96984.0,96965.0,1.08010302]
[1735051568108,0.3608,97000.0,96975.0,0.3608]
[1735051568414,0.36132001,97011.0,96994.0,0.3605]
[1735051568700,0.51360832,97020.0,96996.0,0.051602]
[1735051568701,0.019744,97005.0,96996.0,0.051602]
[1735051568901,0.019744,97005.0,96995.0,0.3331]
[1735051569096,0.51360832,97020.0,97016.0,0.051591]
[1735051569097,0.3608,97020.0,97016.0,0.051591]
[1735051569396,0.3608,97020.0,97001.0,0.3608]
[1735051569397,0.36132001,97020.0,97018.0,0.05159]
[1735051569599,0.3608,97020.0,97017.0,0.3605]
[1735051570408,0.051599,97002.0,97001.0,0.0006]
[1735051570605,0.051602,96997.0,96996.0,0.00154629]
[1735051570900,0.051602,96997.0,96995.0,0.003]
[1735051572200,0.051609,96984.0,96974.0,0.3605]
[1735051572390,0.051612,96977.0,96975.0,0.1596]
[1735051572587,0.3608,96976.0,96975.0,0.1596]
[1735051573207,0.3608,96976.0,96956.0,0.0006]
[1735051573208,0.051621,96962.0,96956.0,0.0006]
[1735051573500,0.3608,96963.0,96958.0,0.3605]
[1735051573806,0.00160001,96977.0,96975.0,0.004]
[1735051573993,0.001,96977.0,96976.0,0.1671]
[1735051574389,0.001,96977.0,96975.0,0.004]
[1735051575199,0.3618,96976.0,96975.0,0.01]
[1735051576202,0.09190826,97007.0,96975.0,1.0273]
[1735051576392,0.09190826,97007.0,96999.0,0.3605]
[1735051576590,0.09190826,97007.0,97003.0,0.412098]
[1735051576797,0.09190826,97007.0,97005.0,0.051597]
[1735051577304,0.3608,97018.0,97005.0,0.051597]
[1735051577496,0.3608,97018.0,96967.0,0.01780433]
[1735051577497,0.4638864,97006.0,96967.0,0.01780433]
[1735051577699,0.4638864,97006.0,96956.0,0.051623]
[1735051577700,0.3608,96968.0,96956.0,0.051623]
[1735051577903,0.3608,96957.0,96935.0,0.1636]
[1735051578202,0.3608,96957.0,96956.0,0.1813]
[1735051578791,0.3608,96957.0,96956.0,0.4813]
[1735051578992,0.3608,96957.0,96956.0,0.5418]
[1735051579196,0.3608,96968.0,96956.0,0.1813]
[1735051579197,0.3608,96960.0,96956.0,0.1813]
[1735051579799,0.001,96957.0,96956.0,0.1823]
[1735051580293,0.3618,96960.0,96956.0,0.1823]
[1735051580498,0.051623,96958.0,96956.0,0.1823]
[1735051580806,0.001,96957.0,96956.0,0.008]
[1735051582001,0.002,96957.0,96956.0,0.012]
[1735051582398,0.001,96957.0,96956.0,0.005]
[1735051582708,0.001,96957.0,96956.0,0.012]
[1735051582892,0.001,96957.0,96956.0,0.063623]
[1735051583401,0.001,96957.0,96956.0,0.058623]
[1735051583595,0.002,96957.0,96956.0,0.058623]
[1735051584000,0.001,96957.0,96956.0,0.054623]
[1735051584302,0.001,96957.0,96956.0,0.003]
[1735051585596,0.002,96957.0,96956.0,0.007]
[1735051586305,0.36144,96960.0,96956.0,0.003]
[1735051586504,0.3608,96960.0,96956.0,0.003]
[1735051586697,0.3608,96960.0,96959.0,0.051622]
[1735051586907,0.3608,96960.0,96956.0,0.003]
[1735051587104,0.3608,96960.0,96956.0,0.006]
[1735051587601,0.051623,96958.0,96956.0,0.006]
[1735051588399,0.051623,96958.0,96956.0,0.009]
[1735051588800,0.051623,96958.0,96956.0,0.005]
[1735051588999,0.051623,96958.0,96956.0,0.006]
[1735051589199,0.051623,96958.0,96956.0,0.005]
[1735051590103,0.051623,96956.0,96955.0,0.00154683]
[1735051590303,0.004,96958.0,96955.0,0.00154683]
[1735051590807,0.051623,96957.0,96955.0,0.00154683]
[1735051590995,0.004,96958.0,96955.0,0.00154683]
[1735051591402,0.005,96958.0,96955.0,0.00154683]
[1735051591608,0.006,96958.0,96955.0,0.00154683]
[1735051591803,0.006,96958.0,96957.0,0.7213]
[1735051592003,0.3608,96988.0,96976.0,0.051613]
[1735051592338,0.00060001,96988.0,96983.0,0.051609]
[1735051592610,0.3608,96999.0,96983.0,0.051609]
[1735051592611,0.36140001,96999.0,96983.0,0.051609]
[1735051592805,0.3608,96999.0,96983.0,0.051609]
[1735051593110,0.3608,96999.0,96992.0,0.051604]
[1735051593409,0.3608,96997.0,96985.0,0.051608]
[1735051593611,0.3608,96986.0,96982.0,0.3605]
[1735051593809,0.3608,96986.0,96983.0,0.001]
[1735051593810,0.051609,96984.0,96983.0,0.001]
[1735051594012,0.412409,96984.0,96983.0,0.001]
[1735051594309,0.05161,96982.0,96957.0,0.003]
[1735051594507,0.05161,96982.0,96955.0,0.16564683]
[1735051594508,0.3608,96959.0,96955.0,0.21727083]
[1735051594812,0.3608,96959.0,96956.0,0.24115988]
[1735051595833,0.051623,96958.0,96955.0,0.01054683]
[1735051596005,0.051623,96957.0,96955.0,0.01054683]
[1735051596200,0.051623,96957.0,96955.0,0.00154683]
[1735051596414,0.051623,96957.0,96956.0,0.007]
[1735051597816,0.051623,96957.0,96955.0,0.00554683]
[1735051598013,0.3608,96956.0,96955.0,0.00554683]
[1735051599213,0.3608,96956.0,96955.0,0.00154683]
[1735051599617,0.3608,96956.0,96955.0,0.00254683]
[1735051600014,0.3608,96956.0,96955.0,0.00354683]
[1735051601315,0.3608,96956.0,96955.0,0.00254683]
[1735051602017,0.3608,96956.0,96955.0,0.00354683]
[1735051602717,0.3608,96956.0,96955.0,0.00254683]
[1735051603110,0.3608,96956.0,96955.0,0.00154683]
[1735051603412,0.3608,96956.0,96955.0,0.00254683]
[1735051604422,0.3608,96956.0,96955.0,0.00354683]
[1735051605022,0.3618,96956.0,96955.0,0.00954683]
[1735051605430,0.3618,96956.0,96955.0,0.00854683]
[1735051605612,0.3608,96956.0,96955.0,0.00754683]
[1735051606320,0.3608,96956.0,96955.0,0.00354683]
[1735051607219,0.3608,96956.0,96955.0,0.001]
[1735051607523,0.3608,96956.0,96955.0,0.006]
[1735051607914,0.3628,96956.0,96955.0,0.001]
[1735051608919,0.3608,96956.0,96955.0,0.001]
[1735051609125,0.051628,96947.0,96946.0,0.0333]
[1735051609325,0.412428,96947.0,96946.0,0.0333]
[1735051609520,0.412428,96947.0,96910.0,0.45598349]
[1735051609521,0.3608,96947.0,96912.0,0.3605]
[1735051609716,0.3608,96927.0,96926.0,0.05318637]
[1735051610018,0.3608,96927.0,96926.0,0.41368637]
[1735051610419,0.051629,96945.0,96926.0,1.02284737]
[1735051610735,0.36148,96947.0,96936.0,0.051634]
[1735051610921,0.051631,96941.0,96937.0,0.1666]
[1735051611317,0.36148,96947.0,96937.0,0.1666]
[1735051611519,0.051632,96940.0,96937.0,0.1666]
[1735051612223,0.12342404,96944.0,96937.0,0.1666]
[1735051612423,0.051633,96939.0,96937.0,0.1666]
[1735051612723,0.3608,96938.0,96937.0,0.1706]
[1735051613320,0.3608,96938.0,96937.0,0.1776]
[1735051613823,0.3608,96938.0,96937.0,0.1706]
[1735051614024,0.3618,96938.0,96937.0,0.1776]
[1735051615117,0.3618,96938.0,96937.0,0.007]
[1735051615430,0.3618,96938.0,96937.0,0.011]
[1735051616127,0.37629116,96938.0,96937.0,0.011]
[1735051616428,0.051641,96923.0,96913.0,0.051646]
[1735051616631,0.3608,96921.0,96913.0,0.051646]
[1735051616825,0.3608,96921.0,96915.0,0.051645]
[1735051617331,0.051644,96918.0,96912.0,0.3608]
[1735051617522,0.051644,96918.0,96916.0,0.01054758]
[1735051618721,0.051644,96918.0,96916.0,0.01854758]
[1735051619523,0.052644,96918.0,96916.0,0.01854758]
[1735051619721,0.053644,96918.0,96916.0,0.00954758]
[1735051620933,0.002,96918.0,96916.0,0.06119258]
[1735051621932,0.01461107,96925.0,96923.0,0.051641]
[1735051622233,0.15338444,96933.0,96924.0,0.354]
[1735051622428,0.051639,96926.0,96924.0,0.1763]
[1735051622634,0.051641,96923.0,96922.0,0.3608]
[1735051622932,0.051644,96917.0,96916.0,0.00154758]
[1735051623927,0.052644,96917.0,96916.0,0.00354758]
[1735051625941,0.053644,96917.0,96916.0,0.01254758]
[1735051627942,0.051653,96901.0,96900.0,0.1]
[1735051628127,0.412453,96901.0,96900.0,0.1]
[1735051629139,0.412453,96901.0,96884.0,0.00052]
[1735051629327,0.412453,96901.0,96874.0,0.00154842]
[1735051629328,0.3608,96885.0,96874.0,0.00154842]
[1735051629529,0.051665,96878.0,96874.0,0.00154842]
[1735051629830,0.3608,96885.0,96874.0,0.00154842]
[1735051629831,0.051666,96876.0,96874.0,0.00154842]
[1735051630227,0.3608,96875.0,96874.0,0.00154842]
[1735051630629,0.3598,96875.0,96874.0,0.00154842]
[1735051630832,0.3588,96875.0,96874.0,0.00154842]
[1735051631038,0.001,96878.0,96875.0,0.051667]
[1735051631228,0.001,96878.0,96874.0,0.00154842]
[1735051631538,0.052667,96875.0,96874.0,0.00154842]
[1735051631742,0.001,96875.0,96874.0,0.00154842]
[1735051632242,0.001,96878.0,96874.0,0.00154842]
[1735051632442,0.002,96878.0,96874.0,0.00154842]
[1735051632748,0.053665,96878.0,96874.0,0.00154842]
[1735051633744,0.001,96875.0,96874.0,0.00154842]
[1735051634144,0.052665,96878.0,96874.0,0.00154842]
[1735051634447,0.001,96875.0,96874.0,0.00154842]
[1735051634943,0.002,96875.0,96874.0,0.00154842]
[1735051635140,0.001,96875.0,96874.0,0.00154842]
[1735051636946,0.051666,96876.0,96874.0,0.00154842]
[1735051637142,0.001,96875.0,96874.0,0.00154842]
[1735051637550,0.002,96875.0,96874.0,0.00154842]
[1735051638643,0.053667,96875.0,96874.0,0.00154842]
[1735051638843,0.052667,96875.0,96874.0,0.00154842]
[1735051640442,0.053667,96875.0,96874.0,0.00154842]
[1735051640639,0.414467,96875.0,96849.0,0.3605]
[1735051640840,0.051677,96856.0,96849.0,0.3605]
[1735051641765,0.051677,96855.0,96849.0,0.3605]
[1735051641939,0.15338444,96860.0,96849.0,0.3605]
[1735051642544,0.001,96856.0,96849.0,0.3605]
[1735051643240,0.05168,96851.0,96849.0,0.3605]
[1735051643846,0.3608,96850.0,96849.0,0.3605]
[1735051644044,0.002,96856.0,96849.0,0.3605]
[1735051644239,0.001,96860.0,96852.0,0.051679]
[1735051644445,0.001,96851.0,96850.0,0.1663]
[1735051644846,0.002,96851.0,96850.0,0.1663]
[1735051645348,0.052679,96851.0,96850.0,0.1663]
[1735051646056,0.051685,96840.0,96825.0,0.3605]
[1735051646355,0.3608,96851.0,96826.0,0.3361]
[1735051646554,0.051683,96845.0,96834.0,0.051688]
[1735051646747,0.36140001,96851.0,96834.0,0.051688]
[1735051646953,0.051685,96841.0,96834.0,0.051688]
[1735051647456,0.051685,96841.0,96835.0,0.051687]
[1735051647840,0.001,96845.0,96835.0,0.051687]
[1735051648351,0.001,96841.0,96826.0,0.3361]
[1735051648551,0.001,96841.0,96826.0,0.6361]
[1735051648753,0.051686,96839.0,96834.0,0.051688]
[1735051649051,0.001,96841.0,96840.0,0.3605]
[1735051649751,0.002,96841.0,96840.0,0.3605]
[1735051650357,0.001,96845.0,96841.0,0.051685]
[1735051650650,0.001,96845.0,96843.0,0.051683]
[1735051650954,0.051683,96846.0,96844.0,0.051683]
[1735051651552,0.001,96845.0,96844.0,0.051683]
[1735051652351,0.3608,96880.0,96860.0,0.051675]
[1735051652552,0.36140001,96880.0,96861.0,0.390774]
[1735051652746,0.36140001,96880.0,96862.0,0.051673]
[1735051653053,0.36140001,96880.0,96861.0,0.3391]
[1735051653265,0.01292435,96872.0,96871.0,0.051669]
[1735051653459,0.15413073,96881.0,96880.0,0.051664]
[1735051653653,0.15413073,96881.0,96880.0,0.772964]
[1735051653953,0.18409681,96890.0,96880.0,1.072964]
[1735051654254,0.051654,96899.0,96880.0,1.072964]
[1735051654255,0.15400883,96892.0,96890.0,0.051659]
[1735051654455,0.15400883,96892.0,96891.0,0.1728]
[1735051654656,0.15400883,96892.0,96891.0,0.3412]
[1735051655350,0.18409681,96899.0,96891.0,1.15581193]
[1735051655557,0.13855524,96908.0,96898.0,0.412454]
[1735051655751,0.13855524,96908.0,96907.0,0.05165]
[1735051656065,0.3608,96931.0,96916.0,0.051645]
[1735051656246,0.3608,96943.0,96923.0,0.051641]
[1735051656451,0.051631,96942.0,96923.0,0.051641]
[1735051657749,0.00481,96924.0,96923.0,0.051641]
[1735051657954,0.00781,96924.0,96923.0,0.051641]
[1735051659458,0.00381,96924.0,96923.0,0.060641]
[1735051659956,0.051631,96942.0,96938.0,0.051633]
[1735051660764,0.051631,96942.0,96939.0,0.051632]
[1735051660958,0.36132001,96943.0,96934.0,0.3608]
[1735051661156,0.01309675,96948.0,96946.0,0.051629]
[1735051661454,0.051623,96957.0,96950.0,0.051627]
[1735051661653,0.051623,96957.0,96950.0,0.412427]
[1735051662263,0.0126548,96959.0,96951.0,0.051626]
[1735051662449,0.05162,96964.0,96951.0,0.051626]
[1735051663753,0.00060001,96969.0,96960.0,0.3608]
[1735051663952,0.167,96974.0,96968.0,0.3608]
[1735051664454,0.167,96974.0,96968.0,0.412417]
[1735051664652,0.167,96974.0,96968.0,0.3608]
[1735051664851,0.01313034,96975.0,96968.0,0.3608]
[1735051665048,0.36132001,96982.0,96973.0,0.051614]
[1735051665356,0.36132001,96982.0,96968.0,0.3608]
[1735051665357,0.3608,96982.0,96974.0,0.051614]
[1735051665753,0.234207,96987.0,96976.0,0.3608]
[1735051665952,0.00052001,96988.0,96986.0,0.3608]
[1735051666162,0.01263345,96989.0,96984.0,0.3608]
[1735051666358,0.1,97000.0,96998.0,0.051601]
[1735051666554,0.1,97000.0,96999.0,0.3608]
[1735051666757,0.11267736,97000.0,96999.0,0.3608]
[1735051666952,0.1,97000.0,96999.0,0.3608]
[1735051668964,0.104,97000.0,96999.0,0.3608]
[1735051669263,0.106,97000.0,96999.0,0.7223]
[1735051669659,0.104,97000.0,96999.0,0.7213]
[1735051669952,0.106,97000.0,96999.0,0.7223]
[1735051671354,0.106,97000.0,96999.0,0.73544188]
[1735051671863,0.051589,97021.0,97000.0,0.3605]
[1735051672165,0.051589,97021.0,96999.0,0.37494188]
[1735051672166,0.00052001,97022.0,97021.0,0.051589]
[1735051672358,0.051585,97029.0,97027.0,0.051585]
[1735051672555,0.051586,97027.0,97019.0,0.51425328]
[1735051672751,0.3608,97042.0,97019.0,0.3608]
[1735051673057,0.3608,97042.0,97017.0,0.051591]
[1735051673058,0.051589,97021.0,97017.0,0.051591]
[1735051673257,0.3608,97029.0,97013.0,0.3605]
[1735051673561,0.0516,97000.0,96999.0,0.003]
[1735051673778,0.4124,97000.0,96999.0,0.003]
[1735051674762,0.3608,97000.0,96984.0,0.051608]
[1735051675064,0.051602,96997.0,96985.0,0.051608]
[1735051675257,0.051602,96997.0,96986.0,0.051607]
[1735051675457,0.3608,97000.0,96986.0,0.051607]
[1735051675666,0.051603,96995.0,96986.0,0.051607]
[1735051676163,0.3608,96990.0,96978.0,0.0015467]
[1735051676462,0.3608,96979.0,96948.0,0.7213]
[1735051676967,0.051616,96970.0,96959.0,0.051622]
[1735051677258,0.3608,96979.0,96959.0,0.051622]
[1735051677259,0.051617,96969.0,96959.0,0.051622]
[1735051677465,0.3608,96979.0,96953.0,0.051625]
[1735051677662,0.05162,96963.0,96953.0,0.051625]
[1735051678366,0.05162,96963.0,96950.0,0.3605]
[1735051678666,0.05162,96963.0,96956.0,0.051623]
[1735051678851,0.05262,96963.0,96956.0,0.051623]
[1735051679266,0.001,96963.0,96956.0,0.051623]
[1735051679657,0.001,96963.0,96950.0,0.3775]
[1735051679851,0.001,96963.0,96958.0,0.412422]
[1735051680063,0.001,96963.0,96958.0,0.051622]
[1735051680564,0.001,96963.0,96956.0,0.3698]
[1735051680565,0.001,96963.0,96961.0,0.05162]
[1735051681152,0.00056001,96970.0,96969.0,0.051617]
[1735051681365,0.36132001,96979.0,96974.0,0.051613]
[1735051681552,0.3608,96979.0,96974.0,0.051613]
[1735051681957,0.3608,96979.0,96967.0,0.3608]
[1735051681958,0.3608,96979.0,96976.0,0.051612]
[1735051682656,0.3608,96979.0,96968.0,0.3605]
[1735051682862,0.3608,96979.0,96976.0,0.051612]
[1735051683061,0.3608,96979.0,96974.0,0.002]
[1735051683370,0.051589,97022.0,96980.0,0.3605]
[1735051683568,0.051589,97022.0,96977.0,0.205486]
[1735051683569,0.051589,97022.0,97019.0,0.3608]
[1735051683761,0.051589,97020.0,97009.0,0.051595]
[1735051683963,0.36132001,97026.0,97011.0,0.3608]
[1735051684272,0.051592,97015.0,96999.0,0.00154653]
[1735051684477,0.051596,97008.0,96999.0,0.00154653]
[1735051684767,0.3608,97016.0,97003.0,0.051598]
[1735051684768,0.051592,97015.0,97003.0,0.051598]
[1735051684961,0.051592,97015.0,97004.0,0.051598]
[1735051685164,0.051592,97015.0,97007.0,0.051596]
[1735051685355,0.3608,97016.0,97015.0,0.051592]
[1735051685556,0.3668,97026.0,97015.0,0.051592]
[1735051685753,0.3668,97026.0,97011.0,0.3618]
[1735051685754,0.3668,97026.0,97018.0,0.05159]
[1735051686156,0.3608,97026.0,97018.0,0.05159]
[1735051686563,0.051589,97021.0,97019.0,0.001]
[1735051686965,0.051589,97021.0,97011.0,0.3608]
[1735051687256,0.051589,97021.0,97013.0,0.051593]
[1735051687870,0.3618,97026.0,97011.0,0.3608]
[1735051688067,0.001,97026.0,97020.0,0.3608]
[1735051688268,0.01275404,97033.0,97020.0,0.3608]
[1735051688475,0.051581,97035.0,97028.0,0.3608]
[1735051689169,0.00052001,97037.0,97028.0,0.3608]
[1735051689474,0.34952001,97046.0,97036.0,0.3608]
[1735051689667,0.15345328,97060.0,97036.0,0.3608]
[1735051689668,0.05209001,97057.0,97045.0,0.3608]
[1735051689966,0.01315692,97057.0,97045.0,0.412376]
[1735051690162,0.12240166,97061.0,97045.0,0.412376]
[1735051690375,0.051567,97062.0,97054.0,0.051571]
[1735051690788,0.00052001,97063.0,97045.0,0.3608]
[1735051690965,0.051567,97062.0,97055.0,0.3608]
[1735051691159,0.051575,97047.0,97045.0,0.00176]
[1735051691362,0.051581,97035.0,97034.0,0.3608]
[1735051691563,0.051582,97033.0,97011.0,0.54210667]
[1735051691764,0.051588,97022.0,97021.0,0.30259905]
[1735051692068,0.177,97034.0,97021.0,0.30259905]
[1735051692268,0.3608,97031.0,97021.0,0.30259905]
[1735051693060,0.3608,97031.0,97021.0,0.004]
[1735051693770,0.3608,97031.0,97028.0,0.051585]
[1735051693969,0.41298001,97039.0,97026.0,0.3608]
[1735051694168,0.41238,97039.0,97029.0,0.051584]
[1735051694370,0.41238,97039.0,97030.0,0.051584]
[1735051694564,0.05158,97039.0,97026.0,0.3608]
[1735051694770,0.3608,97052.0,97045.0,0.051576]
[1735051694969,0.3608,97052.0,97043.0,0.3608]
[1735051695174,0.3608,97052.0,97050.0,0.051573]
[1735051695780,0.36132001,97071.0,97050.0,0.051573]
[1735051695781,0.00052001,97071.0,97070.0,0.051563]
[1735051696073,0.12240166,97085.0,97071.0,0.3605]
[1735051696270,0.12240166,97085.0,97084.0,0.7213]
[1735051696468,0.15343825,97092.0,97091.0,0.051552]
[1735051696883,0.1,97100.0,97084.0,1.08286]
[1735051697067,0.1,97100.0,97096.0,0.3608]
[1735051697267,0.051554,97086.0,97084.0,0.00076]
[1735051697569,0.3608,97088.0,97074.0,0.3608]
[1735051697873,0.25345328,97100.0,97074.0,0.3608]
[1735051697874,0.001,97085.0,97082.0,0.3608]
[1735051698073,0.004,97085.0,97082.0,0.3608]
[1735051698781,0.001,97085.0,97082.0,0.3608]
[1735051698975,0.001,97085.0,97083.0,0.051555]
[1735051699168,0.051552,97090.0,97083.0,0.051555]
[1735051699365,0.051554,97088.0,97083.0,0.051555]
[1735051699566,0.101,97100.0,97083.0,0.051555]
[1735051699780,0.051556,97083.0,97082.0,0.3608]
[1735051700872,0.051556,97083.0,97082.0,0.3628]
[1735051701674,0.051556,97083.0,97082.0,0.002]
[1735051701872,0.051556,97083.0,97082.0,0.004]
[1735051702176,0.05155,97094.0,97087.0,0.051554]
[1735051702979,0.1,97100.0,97094.0,0.05155]
[1735051703473,0.1,97100.0,97084.0,0.15345328]
[1735051703677,0.1,97100.0,97098.0,0.051548]
[1735051705387,0.101,97100.0,97098.0,0.051548]
[1735051705581,0.102,97100.0,97098.0,0.051548]
[1735051706578,0.102,97100.0,97093.0,0.3608]
[1735051706787,0.102,97100.0,97090.0,0.051552]
[1735051707091,0.051548,97098.0,97090.0,0.051552]
[1735051707385,0.102,97100.0,97085.0,0.3605]
[1735051707386,0.051552,97091.0,97085.0,0.3605]
[1735051708090,0.051553,97089.0,97085.0,0.3605]
[1735051708291,0.3608,97093.0,97082.0,0.36156]
[1735051708487,0.051565,97067.0,97065.0,0.3605]
[1735051708786,0.3608,97066.0,97055.0,0.3616]
[1735051708987,0.051565,97065.0,97055.0,0.3608]
[1735051709187,0.051565,97065.0,97049.0,0.051574]
[1735051709490,0.051565,97065.0,97050.0,0.3605]
[1735051709693,0.051573,97051.0,97050.0,0.3605]
[1735051710486,0.051575,97047.0,97046.0,0.3608]
[1735051711689,0.051568,97061.0,97046.0,0.3608]
[1735051711895,0.051568,97061.0,97055.0,0.3608]
[1735051712190,0.36136001,97066.0,97055.0,0.3608]
[1735051712379,0.3608,97066.0,97055.0,0.3608]
[1735051712583,0.00052001,97075.0,97065.0,0.3608]
[1735051712786,0.3608,97086.0,97065.0,0.3608]
[1735051712991,0.3608,97086.0,97073.0,0.3608]
[1735051713394,0.051557,97081.0,97073.0,0.3608]
[1735051713689,0.001,97075.0,97073.0,0.3608]
[1735051713887,0.052561,97075.0,97073.0,0.3608]
[1735051714082,0.051565,97066.0,97065.0,0.001]
[1735051714788,0.412365,97066.0,97065.0,0.001]
[1735051714985,0.051565,97066.0,97065.0,0.001]
[1735051715495,0.05157,97056.0,97055.0,0.3605]
[1735051716795,0.05257,97056.0,97055.0,0.3605]
[1735051717886,0.051574,97050.0,97040.0,0.15345328]
[1735051718087,0.051574,97050.0,97036.0,0.00076]
[1735051718088,0.3608,97050.0,97036.0,0.00076]
[1735051718397,0.051584,97031.0,97030.0,0.00154556]
[1735051720098,0.051584,97031.0,97030.0,0.00254556]
[1735051720585,0.051591,97017.0,97016.0,0.18033265]
[1735051720788,0.051608,96986.0,96984.0,6.5e-07]
[1735051722196,0.054608,96986.0,96984.0,6.5e-07]
[1735051722590,0.051613,96976.0,96974.0,0.3608]
[1735051723893,0.051613,96976.0,96974.0,0.3648]
[1735051724606,0.051613,96976.0,96974.0,0.3628]
[1735051724893,0.051613,96976.0,96974.0,0.3648]
[1735051725699,0.051613,96976.0,96974.0,0.004]
[1735051726301,0.05162,96963.0,96962.0,5.4e-07]
[1735051726500,0.41242,96963.0,96962.0,5.4e-07]
[1735051726886,0.77322,96963.0,96962.0,5.4e-07]
[1735051727590,0.77522,96963.0,96962.0,5.4e-07]
[1735051729000,0.78122,96963.0,96962.0,0.001]
[1735051729298,0.78122,96963.0,96934.0,0.3608]
[1735051729299,0.051635,96935.0,96934.0,0.3608]
[1735051729501,0.051631,96943.0,96934.0,0.3608]
[1735051729706,0.051632,96940.0,96934.0,0.3508]
[1735051730491,0.051632,96940.0,96934.0,0.3538]
[1735051731399,0.3608,96948.0,96934.0,0.3538]
[1735051731598,0.3608,96948.0,96934.0,0.3578]
[1735051731905,0.051633,96939.0,96934.0,0.3578]
[1735051732397,0.051633,96939.0,96934.0,0.3588]
[1735051733096,0.051633,96939.0,96934.0,0.3568]
[1735051733400,0.051629,96946.0,96938.0,0.051633]
[1735051733603,0.051629,96946.0,96942.0,0.3608]
[1735051735006,0.051624,96956.0,96946.0,0.051629]
[1735051735208,0.001,96946.0,96942.0,0.3608]
[1735051735407,0.001,96946.0,96943.0,0.05163]
[1735051735597,0.001,96946.0,96945.0,0.051629]
[1735051736314,0.051626,96951.0,96945.0,0.051629]
[1735051736807,0.003,96956.0,96945.0,0.051629]
[1735051737803,0.051627,96950.0,96945.0,0.051629]
[1735051738004,0.051627,96949.0,96945.0,0.051629]
[1735051738208,0.051627,96949.0,96942.0,0.36156]
[1735051738506,0.051628,96948.0,96946.0,0.051629]
[1735051739806,0.051628,96948.0,96946.0,0.055629]
[1735051740007,0.051628,96948.0,96946.0,0.060629]
[1735051740610,0.00838644,96963.0,96946.0,0.009]
[1735051740908,0.15345328,96990.0,96946.0,0.009]
[1735051740909,0.0082932,96977.0,96966.0,0.051618]
[1735051741097,0.051614,96974.0,96973.0,0.3608]
[1735051742206,0.00873675,96988.0,96975.0,0.051613]
[1735051742406,0.051613,96975.0,96973.0,0.3608]
[1735051743211,0.051966,96988.0,96973.0,0.001]
[1735051743412,0.051614,96974.0,96973.0,0.001]
[1735051743604,0.051609,96983.0,96974.0,0.051614]
[1735051743814,0.05161,96982.0,96974.0,0.051614]
[1735051744516,0.05161,96982.0,96975.0,0.051613]